[Event "Mitropa Cup Women 2024"]
[Site "Apolda"]
[Date "2024.02.23"]
[Round "9.1"]
[White "Urh, Zala"]
[Black "Demeter, Dorina"]
[Result "1/2-1/2"]
[ECO "D35"]
[WhiteElo "2290"]
[BlackElo "2271"]
[Annotator "TA"]
[PlyCount "105"]
[EventDate "2024.02.15"]
[EventType "team-tourn"]
[EventCountry "GER"]
[SourceTitle "playchess.com"]
[Source "ChessBase"]
[SourceQuality "1"]
[WhiteTeam "Slovenia"]
[BlackTeam "Hungary"]
[WhiteTeamCountry "SLO"]
[BlackTeamCountry "HUN"]
[TimeControl "40/5400+30:1800+30"]

{[%evp 15,105,0,1,0,0,0,-3,-17,-8,-9,0,0,-8,-17,0,-79,-67,-64,-57,-55,-67,-86,-68,-80,-79,-96,-72,-82,-61,-108,-91,-68,-45,-76,-84,-86,-14,-14,-8,-8,-22,-118,-67,-123,-25,-45,0,-35,0,0,0,-8,-8,-8,-8,-8,-8,-8,-8,-8,-8,-8,-11,-11,-11,-23,-22,-37,-11,-15,-15,-15,-15,-15,-8,-23,-20,-20,0,-8,0,-8,-8,-8,-8,-8,-8,-8,-8,-8,-8,-8]} 1. d4 {[%emt 0:00:05]} Nf6 {[%emt 0:00:26]} 2. c4 {[%emt 0:00:05]} e6 {[%emt 0:00:19]} 3. Nf3 {[%emt 0:00:07]} d5 {[%emt 0:00:47]} 4. g3 {[%emt 0:00:05]} Bd6 {[%emt 0:02:40]} 5. Bg2 {[%emt 0:00:21]} O-O {[%emt 0:00:34]} 6. O-O {[%emt 0:01:23]} Nc6 {[%emt 0:01:31]} 7. cxd5 {[%emt 0:07:07]} exd5 {[%emt 0:00:43]} 8. Nc3 {[%emt 0:00:07]} h6 {[%emt 0:06:16]} 9. Nb5 {[%emt 0:04:53]} Bf5 {[%emt 0:03:22]} 10. Nxd6 {[%emt 0:04:47]} cxd6 {[%emt 0:00:15]} 11. Bf4 {[%emt 0:06:27]} Re8 {[%emt 0:03:26]} 12. h3 {[%emt 0:09:50]} Rc8 {[%emt 0:08:09]} 13. g4 $1 {[%emt 0:10:07]} Be4 {[%emt 0:02:50]} 14. Qd2 {[%emt 0:07:49]} Na5 {[%emt 0:21:51][%cal Bc6a5,Ba5c4,Bc4a3,Ba3b5,Bb5c3][%mdl 32]} 15. Rac1 {[%emt 0:06:21]} (15. b3 $11 {keeps the balance.}) 15... Nc4 $36 {[%emt 0:02:59][%mdl 2048] White is under pressure.} 16. Qb4 {[%emt 0:00:07]} a5 $1 {[%emt 0:04:27]} 17. Qc3 {[%emt 0:07:53]} b5 {[%emt 0:11:45]} 18. b3 {[%emt 0:01:33]} b4 {[%emt 0:00:20]} 19. Qe1 {[%emt 0:07:14]} Na3 $1 {[%emt 0:01:05]} 20. Qd2 {[%emt 0:00:04]} Qd7 {[%emt 0:04:15]} 21. Rfe1 {[%emt 0:07:57]} Nb5 {[%emt 0:04:41]} 22. Bf1 {[%emt 0:00:14]} (22. Nh2 $15) 22... Rxc1 {[%emt 0:07:16]} 23. Rxc1 {[%emt 0:00:29]} Rc8 {[%emt 0:00:46]} 24. Rxc8+ {[%emt 0:07:21]} Qxc8 {[%emt 0:00:01]} 25. Ne1 {[%emt 0:00:01]} Qc3 {[%emt 0:02:18]} 26. Qxc3 $1 {[%emt 0:09:15]} Nxc3 {[%emt 0:02:50]} 27. Bxd6 {[%emt 0:00:09]} Nxa2 {[%emt 0:00:52] ...Nc1 would now be deadly.} 28. f3 {[%emt 0:00:33] [#]} Bh7 {[%emt 0:00:51]} (28... Bg6 $1 $17 {Threatens to win with ...Nc1.} 29. e4 Nc1 (29... dxe4 30. Bc4 $15)) 29. e4 {[%emt 0:01:07] [#]} (29. e3 $15) 29... dxe4 {[%emt 0:00:29]} (29... Nc1 $1 $17 {[%cal Rc1b3]} 30. e5 Ne8) 30. Bc4 $11 {[%emt 0:00:50]} exf3 {[%emt 0:00:55]} 31. Bc7 {[%emt 0:00:55]} Be4 {[%emt 0:03:03]} (31... a4 $5 32. bxa4 Nc3 33. Nxf3 Nxa4 $15) 32. Bxa5 {[%emt 0:00:14]} Bd5 {[%emt 0:00:01]} 33. Bxd5 {[%emt 0:00:51]} Nxd5 {[%emt 0:00:02][%mdl 4096] Endgame. KBN-KNN} 34. Nd3 {[%emt 0:00:27] Repels Nc1} Nac3 {[%emt 0:01:30]} 35. Nxb4 {[%emt 0:00:34]} Nxb4 {[%emt 0:02:26]} 36. Bxb4 {[%emt 0:00:01] KB-KN} Ne2+ {[%emt 0:00:02]} 37. Kf2 {[%emt 0:00:07] And now Bc5 would win.} Nxd4 {[%emt 0:00:11]} 38. Bc3 {[%emt 0:00:16]} Nxb3 {[%emt 0:00:18]} 39. Kxf3 {[%emt 0:00:03]} Nc5 {[%emt 0:02:02]} 40. h4 {[%emt 0:01:32]} Ne6 {[%emt 0:00:29]} 41. Ke4 {[%emt 0:02:15]} Kh7 {[%emt 0:02:42]} 42. Kf5 {[%emt 0:03:32]} Nc7 {[%emt 0:03:09]} 43. Be5 {[%emt 0:05:08]} Nd5 {[%emt 0:01:12]} 44. Ke4 {[%emt 0:02:19]} Ne7 {[%emt 0:00:24]} 45. Bd6 {[%emt 0:01:12]} Ng8 {[%emt 0:00:23]} 46. Kf5 {[%emt 0:01:33] The position is equal.} g6+ {[%emt 0:02:11]} 47. Ke5 {[%emt 0:00:45]} Kg7 {[%emt 0:01:38]} 48. g5 {[%emt 0:02:03]} f6+ {[%emt 0:00:38]} 49. gxf6+ {[%emt 0:01:01]} Nxf6 {[%emt 0:00:01]} 50. Bf8+ {[%emt 0:05:35]} Kf7 {[%emt 0:00:11] ( -> ...Nd7+)} 51. Bxh6 {[%emt 0:00:24]} Ng4+ {[%emt 0:00:04]} 52. Kf4 {[%emt 0:00:05]} Nxh6 {[%emt 0:00:06]} 53. h5 $1 {[%emt 0:00:06] Weighted Error Value: White=0.10 (very precise) /Black=0.10 (very precise) .  Mistake:       	White=3     	Black=2      Inaccurate:     	White=2     	Black=3      OK:         	White=21    	Black=17     Best:        	White=3     	Black=3      Strong:       	White=3     	Black=2} 1/2-1/2

[Event "Mitropa Cup Women 2024"]
[Site "Apolda"]
[Date "2024.02.23"]
[Round "9.2"]
[White "Terbe, Zsuzsanna"]
[Black "Shpanko, Nadiia"]
[Result "0-1"]
[ECO "D37"]
[WhiteElo "2170"]
[BlackElo "2179"]
[Annotator "RC"]
[PlyCount "98"]
[EventDate "2024.02.15"]
[EventType "team-tourn"]
[EventCountry "GER"]
[SourceTitle "playchess.com"]
[Source "ChessBase"]
[SourceQuality "1"]
[WhiteTeam "Hungary"]
[BlackTeam "Slovenia"]
[WhiteTeamCountry "HUN"]
[BlackTeamCountry "SLO"]
[TimeControl "40/5400+30:1800+30"]

1. d4 {[%emt 0:00:03]} d5 {[%emt 0:00:05]} 2. c4 {[%emt 0:00:09]} e6 {[%emt 0:00:05]} 3. Nf3 {[%emt 0:00:12]} Nf6 {[%emt 0:00:47]} 4. Nc3 {[%emt 0:00:12]} Be7 {[%emt 0:02:13]} 5. Bf4 {[%emt 0:00:35]} O-O {[%emt 0:01:23]} 6. e3 {[%emt 0:00:10]} b6 {[%emt 0:03:30]} 7. Bd3 {[%emt 0:01:02]} dxc4 {[%emt 0:05:57]} 8. Bxc4 {[%emt 0:00:14]} Ba6 {[%emt 0:01:20]} 9. Qe2 {[%emt 0:14:06]} Bxc4 {[%emt 0:01:01]} 10. Qxc4 {[%emt 0:00:11]} c5 {[%emt 0:07:01]} 11. dxc5 {[%emt 0:13:42]} Bxc5 {[%emt 0:02:27]} 12. b4 {[%emt 0:01:53]} Be7 {[%emt 0:00:46]} 13. O-O {[%emt 0:01:38]} Qc8 {[%emt 0:07:11]} 14. Qb3 {[%emt 0:01:48]} Nc6 {[%emt 0:02:08]} 15. a3 {[%emt 0:01:57]} Qb7 {[%emt 0:00:40]} 16. Rfd1 {[%emt 0:06:09]} Rfd8 {[%emt 0:02:13]} 17. e4 {[%emt 0:04:51]} Nh5 {[%emt 0:09:07]} 18. Be3 {[%emt 0:02:10]} Bf6 {[%emt 0:03:54]} 19. Rac1 {[%emt 0:01:38]} Ne5 {[%emt 0:03:21]} 20. Nxe5 {[%emt 0:12:52]} Bxe5 {[%emt 0:01:21]} 21. h3 {[%emt 0:01:24]} h6 {[%emt 0:08:35]} 22. Qb1 {[%emt 0:06:40]} Rxd1+ {[%emt 0:06:05]} 23. Nxd1 {[%emt 0:00:10]} Rd8 {[%emt 0:00:45]} 24. Qc2 {[%emt 0:12:06]} Qa6 {[%emt 0:03:42]} 25. a4 {[%emt 0:01:09]} Nf4 {[%emt 0:06:54]} 26. b5 {[%emt 0:03:37]} Qa5 {[%emt 0:02:22]} 27. Kf1 {[%emt 0:03:02]} Nd3 {[%emt 0:10:13]} 28. Bd2 {[%emt 0:00:14]} Nb4 {[%emt 0:00:04]} 29. Bxb4 {[%emt 0:03:40]} Qxb4 {[%emt 0:00:04]} 30. Rb1 {[%emt 0:00:18]} Qd2 {[%emt 0:01:41]} 31. Ne3 {[%emt 0:00:09]} Qxc2 {[%emt 0:01:14]} 32. Nxc2 {[%emt 0:00:02]} Rd2 {[%emt 0:00:48]} 33. Nb4 {[%emt 0:02:35]} Bd4 {[%emt 0:01:02]} 34. Ke1 {[%emt 0:00:49]} Rxf2 {[%emt 0:03:30]} 35. Nc6 {[%emt 0:03:42]} Bc5 {[%emt 0:00:19]} 36. g4 {[%emt 0:02:15]} Ra2 {[%emt 0:01:01]} 37. e5 {[%emt 0:00:24]} Rxa4 {[%emt 0:00:18]} 38. Rd1 {[%emt 0:00:20]} a6 {[%emt 0:01:33]} 39. Rd8+ {[%emt 0:01:15]} Kh7 {[%emt 0:00:08]} 40. bxa6 {[%emt 0:00:08]} Rxa6 {[%emt 0:00:14]} 41. Rd7 {[%emt 0:30:39]} Kg6 {[%emt 0:31:59]} 42. Nd8 {[%emt 0:00:40]} Ra3 {[%emt 0:01:36]} 43. Nxf7 {[%emt 0:00:00]} Rxh3 {[%emt 0:00:00]} 44. Nd6 {[%emt 0:00:00]} Re3+ {[%emt 0:00:00]} 45. Kf1 {[%emt 0:00:00]} Rxe5 {[%emt 0:00:00]} 46. Ne8 {[%emt 0:00:00]} Bf8 {[%emt 0:00:00]} 47. Kg2 {[%emt 0:00:00]} Rd5 {[%emt 0:00:00]} 48. Rb7 {[%emt 0:00:00]} Rd8 {[%emt 0:00:00]} 49. Nc7 {[%emt 0:00:00]} Rd7 {[%emt 0:00:00]} 0-1

[Event "Mitropa Cup Women 2024"]
[Site "Apolda"]
[Date "2024.02.23"]
[Round "9.3"]
[White "Vidic, Teja"]
[Black "Ivan-Gal, Hanna Krisztina"]
[Result "1/2-1/2"]
[ECO "B48"]
[WhiteElo "2132"]
[BlackElo "2191"]
[Annotator "RC"]
[PlyCount "101"]
[EventDate "2024.02.15"]
[EventType "team-tourn"]
[EventCountry "GER"]
[SourceTitle "playchess.com"]
[Source "ChessBase"]
[SourceQuality "1"]
[WhiteTeam "Slovenia"]
[BlackTeam "Hungary"]
[WhiteTeamCountry "SLO"]
[BlackTeamCountry "HUN"]
[TimeControl "40/5400+30:1800+30"]

1. e4 {[%emt 0:00:03]} c5 {[%emt 0:00:06]} 2. Nf3 {[%emt 0:00:11]} e6 {[%emt 0:00:08]} 3. d4 {[%emt 0:00:05]} cxd4 {[%emt 0:00:08]} 4. Nxd4 {[%emt 0:00:09]} Nc6 {[%emt 0:00:09]} 5. Nc3 {[%emt 0:02:39]} Qc7 {[%emt 0:00:09]} 6. Be3 {[%emt 0:00:06]} a6 {[%emt 0:00:09]} 7. Qf3 {[%emt 0:00:24]} b5 {[%emt 0:00:31]} 8. O-O-O {[%emt 0:01:52]} Bb7 {[%emt 0:00:39]} 9. Nxc6 {[%emt 0:21:19]} Bxc6 {[%emt 0:01:46]} 10. Bd3 {[%emt 0:03:35]} Nf6 {[%emt 0:04:26]} 11. Rhe1 {[%emt 0:00:43]} Be7 {[%emt 0:04:57]} 12. g4 {[%emt 0:01:10]} b4 {[%emt 0:05:23]} 13. Ne2 {[%emt 0:01:28]} Qb7 {[%emt 0:10:11]} 14. Ng3 {[%emt 0:02:04]} d5 {[%emt 0:06:34]} 15. Bd4 {[%emt 0:01:33]} h5 {[%emt 0:20:20]} 16. gxh5 {[%emt 0:16:08]} dxe4 {[%emt 0:00:59]} 17. Nxe4 {[%emt 0:00:06]} Nxh5 {[%emt 0:04:05]} 18. Qe3 {[%emt 0:04:55]} Bd5 {[%emt 0:04:37]} 19. f4 {[%emt 0:06:01]} Qc7 {[%emt 0:04:01]} 20. Be5 {[%emt 0:04:19]} Qa5 {[%emt 0:01:44]} 21. Nd6+ {[%emt 0:01:30]} Bxd6 {[%emt 0:01:26]} 22. Bxd6 {[%emt 0:00:16]} Nf6 {[%emt 0:07:28]} 23. f5 {[%emt 0:04:31]} Qxa2 {[%emt 0:08:04]} 24. fxe6 Bxe6 {[%emt 0:01:28]} 25. Qg3 {[%emt 0:12:38]} Qa1+ {[%emt 0:05:35]} 26. Kd2 {[%emt 0:00:05]} Qxb2 {[%emt 0:00:15]} 27. Rb1 {[%emt 0:07:43]} Qc3+ {[%emt 0:00:15]} 28. Kc1 {[%emt 0:00:21]} Rxh2 {[%emt 0:04:05]} 29. Be5 {[%emt 0:06:29]} Qd2+ {[%emt 0:00:17]} 30. Kb2 {[%emt 0:00:09]} Rg2 {[%emt 0:00:20]} 31. Qf3 {[%emt 0:02:17]} Rc8 {[%emt 0:00:09]} 32. Rbc1 {[%emt 0:00:54]} Rf2 {[%emt 0:02:24]} 33. Qg3 {[%emt 0:00:30]} Rg2 {[%emt 0:00:52]} 34. Qf3 {[%emt 0:00:03]} Rf2 {[%emt 0:01:26]} 35. Qg3 {[%emt 0:00:04]} Nh5 {[%emt 0:01:16]} 36. Qe3 {[%emt 0:01:23]} Qxe3 {[%emt 0:00:40]} 37. Rxe3 {[%emt 0:00:04]} Nf4 {[%emt 0:00:56]} 38. Bxa6 {[%emt 0:00:18]} Ra8 {[%emt 0:00:21]} 39. Bb5+ {[%emt 0:00:36]} Ke7 {[%emt 0:00:15]} 40. Bxg7 {[%emt 0:00:49]} b3 {[%emt 0:00:25]} 41. Bc4 {[%emt 0:04:51]} Rxc2+ {[%emt 0:08:10]} 42. Rxc2 {[%emt 0:00:20]} bxc2 {[%emt 0:00:04]} 43. Bxe6 {[%emt 0:02:24]} Nxe6 {[%emt 0:01:11]} 44. Kxc2 {[%emt 0:01:06]} Rd8 {[%emt 0:01:05]} 45. Bc3 {[%emt 0:00:34]} f5 {[%emt 0:01:25]} 46. Rd3 {[%emt 0:03:45]} Re8 {[%emt 0:02:15]} 47. Rf3 {[%emt 0:02:41]} f4 {[%emt 0:00:43]} 48. Be5 {[%emt 0:00:38]} Kf7 {[%emt 0:03:57]} 49. Kd2 {[%emt 0:02:31]} Kg6 {[%emt 0:00:17]} 50. Bxf4 {[%emt 0:00:24]} Nxf4 {[%emt 0:00:07]} 51. Rxf4 {[%emt 0:00:04]} 1/2-1/2

[Event "Mitropa Cup Women 2024"]
[Site "Apolda"]
[Date "2024.02.23"]
[Round "9.4"]
[White "Karacsonyi, Kata"]
[Black "Mihelic, Vesna"]
[Result "0-1"]
[ECO "C54"]
[WhiteElo "2087"]
[BlackElo "2112"]
[Annotator "RC"]
[PlyCount "80"]
[EventDate "2024.02.15"]
[EventType "team-tourn"]
[EventCountry "GER"]
[SourceTitle "playchess.com"]
[Source "ChessBase"]
[SourceQuality "1"]
[WhiteTeam "Hungary"]
[BlackTeam "Slovenia"]
[WhiteTeamCountry "HUN"]
[BlackTeamCountry "SLO"]
[TimeControl "40/5400+30:1800+30"]

1. e4 {[%emt 0:00:03]} e5 {[%emt 0:00:04]} 2. Nf3 {[%emt 0:00:10]} Nc6 {[%emt 0:00:05]} 3. Bc4 {[%emt 0:00:17]} Bc5 {[%emt 0:00:08]} 4. d3 {[%emt 0:00:22]} Nf6 {[%emt 0:00:13]} 5. Bg5 {[%emt 0:01:38]} d6 {[%emt 0:01:32]} 6. c3 {[%emt 0:00:48]} a6 {[%emt 0:02:56]} 7. a4 {[%emt 0:01:25]} Ba7 {[%emt 0:01:06]} 8. Nbd2 {[%emt 0:01:24]} O-O {[%emt 0:01:20]} 9. h3 {[%emt 0:02:37]} Be6 {[%emt 0:01:48]} 10. Bh4 {[%emt 0:17:07]} Qe7 {[%emt 0:04:47]} 11. Bd5 {[%emt 0:10:54]} Nd8 {[%emt 0:07:57]} 12. g4 {[%emt 0:04:55]} c6 {[%emt 0:04:57]} 13. c4 {[%emt 0:16:50]} cxd5 {[%emt 0:18:58]} 14. exd5 {[%emt 0:00:10]} Bd7 {[%emt 0:23:47]} 15. Ne4 {[%emt 0:01:09]} Ne6 {[%emt 0:00:43]} 16. dxe6 {[%emt 0:05:49]} fxe6 {[%emt 0:00:16]} 17. Rg1 {[%emt 0:05:03]} Bc6 {[%emt 0:02:25]} 18. Nfd2 {[%emt 0:10:28]} d5 {[%emt 0:07:46]} 19. Nxf6+ {[%emt 0:02:43]} Rxf6 {[%emt 0:02:59]} 20. Bxf6 {[%emt 0:06:36]} Qxf6 {[%emt 0:00:01]} 21. Qe2 {[%emt 0:00:15]} e4 {[%emt 0:01:50]} 22. dxe4 {[%emt 0:02:56]} Qxb2 {[%emt 0:04:45]} 23. Rb1 {[%emt 0:00:19]} Qc2 {[%emt 0:01:03]} 24. Qd1 {[%emt 0:02:19]} Qd3 {[%emt 0:01:24]} 25. Qe2 {[%emt 0:02:16]} Qc2 {[%emt 0:04:28]} 26. Qd1 {[%emt 0:00:04]} Qc3 {[%emt 0:01:03]} 27. Rg3 {[%emt 0:01:10]} Qd4 {[%emt 0:00:58]} 28. Qe2 {[%emt 0:00:22]} dxe4 {[%emt 0:00:59]} 29. Nb3 {[%emt 0:00:13]} Qe5 {[%emt 0:00:25]} 30. c5 {[%emt 0:01:09]} Bxa4 {[%emt 0:01:03]} 31. Re3 {[%emt 0:01:12]} Bb5 {[%emt 0:00:55]} 32. f4 {[%emt 0:02:13]} Qxf4 {[%emt 0:00:37]} 33. Qf2 {[%emt 0:00:06]} Qe5 {[%emt 0:00:29]} 34. Qb2 {[%emt 0:00:45]} Qg5 {[%emt 0:01:19]} 35. Qd2 {[%emt 0:01:32]} Rf8 {[%emt 0:00:37]} 36. Kd1 {[%emt 0:00:36]} Rd8 {[%emt 0:00:32]} 37. Nd4 {[%emt 0:00:07]} Qxc5 {[%emt 0:00:49]} 38. Rxe4 {[%emt 0:00:47]} e5 {[%emt 0:01:02]} 39. Rc1 {[%emt 0:00:38]} Qd5 {[%emt 0:00:53]} 40. Qg5 {[%emt 0:00:29]} Bxd4 {[%emt 0:00:27]} 0-1

[Event "Mitropa Cup Women 2024"]
[Site "Apolda"]
[Date "2024.02.23"]
[Round "9.5"]
[White "Brunello, Marina"]
[Black "Iglesias, Yosha"]
[Result "1/2-1/2"]
[ECO "B12"]
[WhiteElo "2345"]
[BlackElo "2260"]
[Annotator "TA"]
[PlyCount "144"]
[EventDate "2024.02.15"]
[EventType "team-tourn"]
[EventCountry "GER"]
[SourceTitle "playchess.com"]
[Source "ChessBase"]
[SourceQuality "1"]
[WhiteTeam "Italy"]
[BlackTeam "France"]
[WhiteTeamCountry "ITA"]
[BlackTeamCountry "FRA"]
[TimeControl "40/5400+30:1800+30"]

{[%evp 9,143,14,18,24,18,15,20,16,11,8,5,0,0,8,9,-23,1,-62,-61,-62,-43,-71,-71,-72,-72,-74,-50,-66,-68,-121,-58,-66,-58,-64,-62,-67,-68,-81,-46,-33,-40,-58,-33,-97,-52,-57,-65,-267,-104,-156,-167,-192,-168,-335,-326,-370,-358,-289,-85,-72,-70,-60,-61,-60,-63,-68,-68,-68,-68,-68,-68,-68,-68,-241,-11,-12,-12,-12,-12,-19,-19,-19,-8,-8,-8,-9,-8,-8,-8,-8,0,0,0,0,0,0,0,0,0,0,0,0,0,0,0,0,0,-226,-310,-329,-338,-384,-23,-160,0,0,0,0,0,0,0,0,0,0,0,0,0,0,0,0,0,0,0,0,0,0]} 1. e4 {[%emt 0:00:05]} c6 {[%emt 0:00:07]} 2. d4 {[%emt 0:00:12]} d5 {[%emt 0:00:09]} 3. e5 {[%emt 0:00:16]} c5 {[%emt 0:00:10]} 4. Nf3 {[%emt 0:00:11]} cxd4 {[%emt 0:00:23]} 5. Nxd4 {[%emt 0:00:30]} Nc6 {[%emt 0:01:00]} 6. Nxc6 {[%emt 0:00:11]} bxc6 {[%emt 0:00:08]} 7. Bd3 {[%emt 0:00:02]} e6 {[%emt 0:00:59]} 8. O-O {[%emt 0:00:39]} Ne7 {[%emt 0:01:41]} 9. Nd2 {[%emt 0:00:03]} a5 {[%emt 0:04:44]} 10. Re1 {[%emt 0:05:15]} Ba6 {[%emt 0:04:45]} 11. c4 {[%emt 0:00:31]} Ng6 {[%emt 0:02:07]} 12. a3 {[%emt 0:17:00]} (12. Qa4 {with more complications.} Qb6 13. Nb3 Bb4 14. c5) 12... Bc5 {[%emt 0:08:50]} 13. Nf3 {[%emt 0:05:49]} (13. Nb3 $11 dxc4 14. Nxc5 cxd3 15. Qd2) 13... dxc4 $15 {[%emt 0:03:18]} 14. Bxg6 {[%emt 0:34:24]} hxg6 {[%emt 0:01:39]} 15. Qxd8+ {[%emt 0:02:58]} Rxd8 {[%emt 0:00:42]} 16. Bd2 {[%emt 0:00:06] White is weak on the light squares} a4 {[%emt 0:01:05]} 17. Bc3 {[%emt 0:00:39]} ({Don't go for} 17. Bb4 $2 Bxb4 18. axb4 Bb5 $19) 17... Ke7 {[%emt 0:11:45]} 18. Re4 {[%emt 0:08:30]} Rd3 {[%emt 0:07:08]} 19. Kf1 {[%emt 0:00:22]} (19. Nd4 $15) 19... Rhd8 {[%emt 0:11:17]} (19... f5 $1 $17 {[%cal Rf5e4]} 20. exf6+ gxf6) 20. Ke1 {[%emt 0:00:10]} R8d5 {[%emt 0:14:39]} 21. Rc1 {[%emt 0:02:00]} f5 {[%emt 0:01:21]} 22. Rh4 {[%emt 0:01:59] [#]} g5 $1 {[%emt 0:10:00]} 23. Nxg5 {[%emt 0:03:58] [#] Threatens to win with Rh7.} (23. Rh7 Rxc3) 23... Rxc3 $1 {[%emt 0:00:05]} 24. Rxc3 {[%emt 0:00:23]} Rxe5+ {[%emt 0:00:04]} 25. Kf1 {[%emt 0:00:09]} Rd5 {[%emt 0:00:17]} (25... Bb6 $5 26. g4 Rb5 27. gxf5 exf5 $17) 26. Ke2 {[%emt 0:04:31] Prevents Rd2+} (26. Ke1 $1 $15) 26... Bd4 $36 {[%emt 0:01:59][%mdl 2048] Black is more active.} 27. Rxd4 $1 {[%emt 0:02:40]} Rxd4 {[%emt 0:00:03][%mdl 4096] Endgame. KRB-KRN} 28. Ke3 $2 {[%emt 0:00:13]} (28. Nf3 $15 Rd5 29. Ke1) 28... e5 $2 {[%emt 0:01:44]} (28... Rg4 $19 {has better winning chances.} 29. h4 Rxg2) 29. g3 {[%emt 0:00:19]} (29. Ke2 $142) 29... Rd8 $17 {[%emt 0:04:31]} 30. Nf3 {[%emt 0:01:14]} Kf6 {[%emt 0:00:52]} 31. h4 $2 {[%emt 0:03:24]} (31. Nd2) 31... Rb8 $19 {[%emt 0:01:20]} 32. Nd2 {[%emt 0:00:42]} Rxb2 {[%emt 0:00:33]} 33. Nxc4 {[%emt 0:01:02]} Bxc4 {[%emt 0:00:27]} (33... Rb3 $19 {and Black stays clearly on top.} 34. Rxb3 axb3) 34. Rxc4 {[%emt 0:00:03] KR-KR} Rb3+ {[%emt 0:00:05]} 35. Ke2 {[%emt 0:00:03]} Rxa3 {[%emt 0:00:13] White must now prevent ...Ra2+.} 36. Rxc6+ {[%emt 0:00:05]} Kf7 {[%emt 0:00:15]} 37. Rc7+ {[%emt 0:00:11]} Kg6 {[%emt 0:00:33] aiming for ...Ra2+.} 38. Rc6+ $1 {[%emt 0:01:17]} Kh7 $1 {[%emt 0:00:59] ...Ra2+ is the strong threat.} 39. Rc5 $1 {[%emt 0:03:10]} f4 {[%emt 0:00:47]} 40. gxf4 {[%emt 0:03:21]} exf4 {[%emt 0:00:10]} 41. f3 $2 {[%emt 0:30:09] [#]} ({White should play} 41. Rc6 $15) 41... Re3+ $2 {[%emt 0:31:15]} (41... Ra1 $1 $19 {Strongly threatening ...a3.} 42. Kf2 Ra2+ 43. Ke1 a3) 42. Kf2 $11 {[%emt 0:00:04]} Rb3 {[%emt 0:00:16] Hoping for ...Rb2+.} 43. Ra5 {[%emt 0:00:49]} Rb2+ {[%emt 0:02:05]} 44. Kg1 {[%emt 0:00:00]} Ra2 {[%emt 0:00:00] ...Kg6 would now be deadly.} 45. Ra6 {[%emt 0:00:00]} g6 {[%emt 0:00:00]} 46. Ra7+ {[%emt 0:00:00]} Kg8 {[%emt 0:00:00]} 47. Kh1 {[%emt 0:00:00]} a3 {[%emt 0:00:00]} 48. Ra4 $1 {[%emt 0:00:00]} Kg7 {[%emt 0:00:00]} 49. Kg1 $1 {[%emt 0:00:00]} Kf6 {[%emt 0:00:00]} 50. Rxf4+ {[%emt 0:00:00]} Ke5 {[%emt 0:00:00]} (50... Kg7 $5 51. Ra4 $8 Kf6 $11) 51. Ra4 {[%emt 0:00:00]} Kd5 {[%emt 0:00:00]} 52. f4 {[%emt 0:00:00]} Kc5 {[%emt 0:00:00]} 53. h5 {[%emt 0:00:00]} gxh5 {[%emt 0:00:00] And now ...Kd5 would win.} 54. f5 {[%emt 0:00:00]} Kd6 {[%emt 0:00:00]} 55. f6 {[%emt 0:00:00]} Ke6 {[%emt 0:00:00]} 56. Ra6+ {[%emt 0:00:00]} Kf7 {[%emt 0:00:00]} 57. Kh1 {[%emt 0:00:00]} Kg6 $2 {[%emt 0:00:00]} (57... Ke8 $11) 58. Kg1 $19 {[%emt 0:00:00]} h4 {[%emt 0:00:00]} 59. Kh1 {[%emt 0:00:00]} h3 {[%emt 0:00:00]} 60. Kg1 {[%emt 0:00:00]} Rg2+ $2 {[%emt 0:00:00]} ({Better is} 60... Ra1+ $19 61. Kh2 a2) 61. Kh1 $11 {[%emt 0:00:00] [#]} a2 $2 {[%emt 0:00:00]} (61... Rg3 $1 $17) 62. f7+ $1 {[%emt 0:00:00] The position is equal.} Kxf7 {[%emt 0:00:00]} 63. Ra7+ $1 {[%emt 0:00:00]} Kg6 {[%emt 0:00:00]} 64. Ra6+ $1 {[%emt 0:00:00]} Kh5 {[%emt 0:00:00]} (64... Kg5 $5 65. Ra5+ $8 Kg4 66. Ra4+ Kg3 67. Ra3+ Kg4 68. Ra4+ Kg3 69. Ra3+ Kf4 70. Ra4+ Kf5 71. Ra5+ Ke4 72. Ra4+ Ke5 73. Ra5+ Kf6 74. Ra6+ Ke7 75. Ra7+ Ke8 76. Ra8+ Kf7 77. Ra7+ Kf8 78. Ra8+ Ke7 79. Ra7+ Ke8 80. Ra8+ Kf7 81. Ra7+ $11) 65. Ra5+ {[%emt 0:00:00]} Kh4 {[%emt 0:00:00]} 66. Ra4+ {[%emt 0:00:00]} Kg3 {[%emt 0:00:00]} 67. Ra3+ {[%emt 0:00:00]} Kf4 {[%emt 0:00:00]} 68. Ra4+ {[%emt 0:00:00]} Ke5 {[%emt 0:00:00]} (68... Kf3 $5 69. Ra3+ $8 Kf4 70. Ra4+ Kg5 71. Ra5+ Kh4 72. Ra4+ Kh5 73. Ra5+ Kg6 74. Ra6+ Kg7 75. Ra7+ Kg6 76. Ra6+ $11) 69. Ra5+ {[%emt 0:00:00]} Kd6 {[%emt 0:00:00]} (69... Kd4 $5 70. Ra4+ $8 Kd5 71. Ra5+ Ke4 72. Ra4+ Kf5 73. Ra5+ Kf6 74. Ra6+ Kg5 75. Ra5+ Kg6 76. Ra6+ Kg7 77. Ra7+ Kg6 78. Ra6+ $11) 70. Ra6+ {[%emt 0:00:00]} Kc7 {[%emt 0:00:00]} 71. Ra7+ $1 {[%emt 0:00:00]} Kb8 {[%emt 0:00:00] ( -> ...Rg1+)} 72. Ra8+ $1 {[%emt 0:00:00]} Kxa8 {[%emt 0:00:00] Weighted Error Value: White=0.22 (precise) /Black=0.30.  Loses game:     	White=2     	---        Missed win:     	---       	Black=4      Mistake:       	White=5     	Black=3      Inaccurate:     	White=2     	Black=1      OK:         	White=17    	Black=18     Best:        	White=14    	Black=10     Strong:       	White=10    	Black=1      Brilliant:      	---       	Black=1} 1/2-1/2